bitfinex/quotes_SOLUSD_20241214
["timestamp","ask_amount","ask_price","bid_price","bid_amount"]
[1734141832550,1.5954,225.84,225.75,7.46927932]
[1734141832741,1.5954,225.84,225.76,7.75162169]
[1734141833427,1.5954,225.84,225.76,0.28234237]
[1734141833725,0.83022512,225.83,225.73,7.75154971]
[1734141833948,1.5954,225.84,225.73,7.75154971]
[1734141834146,0.83035197,225.83,225.73,7.75154971]
[1734141835939,2.42576566,225.84,225.73,7.75154971]
[1734141836962,2.42576566,225.84,225.73,0.28227039]
[1734141837135,2.42576566,225.84,225.72,0.28262503]
[1734141838186,2.42576566,225.84,225.72,7.75190435]
[1734141838187,1.5954,225.84,225.72,7.75190435]
[1734141838454,0.83034349,225.83,225.72,7.75190435]
[1734141841434,0.83034349,225.83,225.72,0.28262503]
[1734141844155,0.83034349,225.83,225.72,7.75190435]
[1734141844938,1.5954,225.84,225.74,7.46927932]
[1734141845143,1.5954,225.84,225.75,0.28238532]
[1734141847345,1.5954,225.84,225.73,0.28244827]
[1734141847346,0.83031406,225.83,225.73,0.28244827]
[1734141848362,0.83031406,225.83,225.72,0.28260039]
[1734141849760,23.776884,225.82,225.7,0.28260023]
[1734141849947,0.83050941,225.81,225.7,20.28260023]
[1734141851975,1.5954,225.84,225.73,7.46927932]
[1734141852152,1.5954,225.84,225.74,7.75168632]
[1734141852351,1.5954,225.84,225.75,7.46927932]
[1734141852572,1.5954,225.84,225.76,0.28233141]
[1734141852765,6.99795563,225.86,225.76,7.75161073]
[1734141852965,6.1677,225.86,225.76,7.75161073]
[1734141853681,0.83023539,225.85,225.76,0.28233141]
[1734141853884,6.1677,225.86,225.75,0.28241256]
[1734141855367,6.1677,225.86,225.75,7.75169188]
[1734141856588,6.1677,225.86,225.75,0.28241256]
[1734141857075,0.83025769,225.88,225.76,7.46927932]
[1734141857277,0.83025769,225.88,225.77,0.28226393]
[1734141857475,20.83025769,225.88,225.77,0.28226393]
[1734141857681,0.83025769,225.88,225.77,0.28226393]
[1734141858987,1.5479,225.89,225.79,7.46927932]
[1734141859285,1.5479,225.89,225.8,0.28198225]
[1734141860194,0.83009009,225.88,225.76,0.28200033]
[1734141860497,0.83009009,225.88,225.76,7.75127965]
[1734141860691,1.5479,225.89,225.78,7.46927932]
[1734141860994,1.5479,225.89,225.79,0.28207224]
[1734141861788,1.5479,225.89,225.78,0.28215247]
[1734141862492,21.5479,225.89,225.78,0.28215247]
[1734141862692,0.83017538,225.88,225.78,0.28215247]
[1734141864077,0.83017538,225.88,225.72,137.74739584]
[1734141864078,20.0,225.86,225.74,0.28226442]
[1734141864298,23.776884,225.87,225.74,0.28226442]
[1734141864299,20.0,225.84,225.74,0.28226442]
[1734141864791,0.83033114,225.83,225.74,0.28226442]
[1734141864982,0.83033114,225.83,225.71,11.0759]
[1734141864983,0.83033114,225.83,225.73,0.28258454]
[1734141865891,0.83033114,225.83,225.71,0.28258895]
[1734141866090,1.5479,225.81,225.71,0.28258895]
[1734141866273,22.37836382,225.81,225.71,0.28258895]
[1734141867900,22.37836382,225.81,225.69,0.28283697]
[1734141868282,23.776884,225.8,225.69,0.28283697]
[1734141868481,0.83050873,225.79,225.69,0.28283697]
[1734141869599,24.60739311,225.78,225.65,0.28283835]
[1734141869898,24.60739311,225.78,225.65,7.75211767]
[1734141872194,24.60739311,225.78,225.66,27.46927932]
[1734141872394,24.60739311,225.78,225.67,0.28304305]
[1734141875394,23.776884,225.79,225.68,7.46927932]
[1734141875595,23.776884,225.79,225.69,7.75204648]
[1734141876302,23.776884,225.79,225.69,0.28276716]
[1734141876496,23.776884,225.8,225.69,0.28276716]
[1734141878912,1.5479,225.81,225.69,7.75204648]
[1734141879211,1.5479,225.81,225.7,28.87927932]
[1734141879419,1.5479,225.81,225.71,0.28268082]
[1734141880296,1.5479,225.81,225.71,1.69268082]
[1734141880497,0.8304633,225.8,225.71,1.69268082]
[1734141881002,1.5479,225.81,225.71,1.69268082]
[1734141885810,23.776884,225.8,225.71,1.69268082]
[1734141886110,24.6073174,225.8,225.71,1.69268082]
[1734141889211,24.6073174,225.8,225.71,1.41]
[1734141889411,0.12549,225.79,225.71,1.41]
[1734141891613,0.12549,225.79,225.66,0.28305]
[1734141895017,24.6073174,225.8,225.66,7.75232932]
[1734141895222,24.6073174,225.8,225.67,7.46927932]
[1734141895518,24.6073174,225.8,225.68,0.28290618]
[1734141899017,0.8304334,225.8,225.69,1.5529]
[1734141899317,20.0,225.79,225.7,0.28279741]
[1734141899709,20.0,225.81,225.7,0.28279741]
[1734141900020,20.0,225.79,225.7,0.28279741]
[1734141900998,0.83048567,225.8,225.7,0.28279741]
[1734141901202,0.83045431,225.82,225.72,7.46927932]
[1734141901399,94.4663,225.89,225.73,7.75179666]
[1734141901400,0.8303486,225.86,225.73,7.75179666]
[1734141902624,23.776884,225.85,225.73,7.75179666]
[1734141902822,0.83034539,225.84,225.73,7.75179666]
[1734141904341,0.83034539,225.84,225.73,0.28251734]
[1734141904540,0.83034539,225.84,225.72,0.28268154]
[1734141909531,23.902374,225.83,225.72,0.28268154]
[1734141909716,20.83050547,225.82,225.71,0.28283109]
[1734141910630,23.776884,225.81,225.7,0.28279818]
[1734141910922,0.8305268,225.8,225.7,0.28279818]
[1734141911231,0.8305268,225.8,225.7,7.7520775]
[1734141912826,0.8305268,225.8,225.7,0.28279818]
[1734141913538,0.8305268,225.8,225.7,7.7520775]
[1734141913712,0.8305268,225.8,225.7,0.28279818]
[1734141917424,6.6414,225.86,225.74,7.46927932]
[1734141917425,0.83051121,225.86,225.74,7.46927932]
[1734141917728,0.83051121,225.86,225.75,0.28246639]
[1734141917904,0.83051121,225.86,225.76,6.4338]
[1734141918109,0.83051121,225.86,225.77,1.6039]
[1734141918531,13.53645435,225.9,225.77,1.6039]
[1734141918532,0.8302878,225.89,225.77,1.6039]
[1734141919240,20.0,225.87,225.77,1.6039]
[1734141919429,0.83029763,225.86,225.77,1.6039]
[1734141921736,0.83029763,225.86,225.77,1.88627616]
[1734141923532,20.0,225.87,225.77,3.29627616]
[1734141925315,0.83023123,225.89,225.78,7.46927932]
[1734141925511,0.83023123,225.89,225.79,0.2821536]
[1734141926128,0.83015537,225.92,225.8,7.46927932]
[1734141926334,0.83015537,225.92,225.82,15.50697932]
[1734141926547,0.0780576,225.93,225.83,0.28186105]
[1734141926548,0.90813188,225.93,225.83,0.28186105]
[1734141926716,0.0780576,225.93,225.83,0.28186105]
[1734141927326,0.0780576,225.93,225.82,15.50697932]
[1734141927327,0.90805912,225.93,225.82,8.0377]
[1734141927535,0.12549,225.92,225.82,8.0377]
[1734141927731,0.83018592,225.91,225.82,8.0377]
[1734141928622,0.83015745,225.9,225.82,8.0377]
[1734141931528,23.776884,225.89,225.82,8.0377]
[1734141931726,0.83029398,225.88,225.82,8.0377]
[1734141934254,0.83029398,225.88,225.82,1.6039]
[1734141934541,23.776884,225.87,225.82,1.6039]
[1734141934735,0.8303621,225.86,225.82,1.6039]
[1734141939443,0.8303621,225.86,225.77,6.6028]
[1734141941462,0.12549,225.85,225.77,6.6028]
[1734141941625,20.0,225.84,225.77,6.6028]
[1734141941825,0.83047407,225.83,225.77,6.6028]
[1734141943431,0.83045792,225.82,225.77,6.6028]
[1734141943945,23.776884,225.84,225.77,6.6028]
[1734141944123,23.776884,225.82,225.77,6.6028]
[1734141944323,0.8304583,225.81,225.77,6.6028]
[1734141955058,0.83043037,225.86,225.77,6.6028]
[1734141955247,0.83031579,225.86,225.77,6.6028]
[1734141955448,20.0,225.87,225.77,6.6028]
[1734141955649,0.83024997,225.86,225.77,6.6028]
[1734141956162,20.0,225.88,225.78,0.28232717]
[1734141957368,0.83025351,225.9,225.78,7.75160649]
[1734141957670,23.776884,225.89,225.79,7.46927932]
[1734141957867,23.776884,225.89,225.8,0.28212641]
[1734141958251,23.776884,225.89,225.8,0.44212641]
[1734141959757,23.776884,225.89,225.8,0.28212641]
[1734141960960,23.776884,225.89,225.81,1.5076]
[1734141961158,23.776884,225.91,225.81,1.5076]
[1734141961359,23.776884,225.89,225.81,1.5076]
[1734141961559,24.6070016,225.91,225.81,1.5076]
[1734141962876,0.12549,225.9,225.81,1.5076]
[1734141963071,23.776884,225.88,225.81,1.5076]
[1734141963268,0.83026466,225.87,225.81,1.5076]
[1734141963888,23.776884,225.88,225.81,1.5076]
[1734141965181,0.83020187,225.87,225.81,1.5076]
[1734141966377,23.776884,225.86,225.81,1.5076]
[1734141966581,0.83032812,225.85,225.81,1.5076]
[1734141966786,23.776884,225.84,225.81,1.5076]
[1734141966962,0.83041245,225.83,225.81,1.5076]
[1734141967869,23.776884,225.82,225.77,6.6028]
[1734141968163,0.83047585,225.81,225.77,6.6028]
[1734141968372,23.776884,225.82,225.77,6.6028]
[1734141971690,0.83041462,225.81,225.77,6.6028]
[1734141972065,23.902374,225.86,225.77,6.6028]
[1734141972265,23.776884,225.84,225.77,6.6028]
[1734141972479,0.83042419,225.83,225.77,6.6028]
[1734141973378,0.83043056,225.82,225.77,6.6028]
[1734141973685,23.776884,225.84,225.77,6.6028]
[1734141973891,0.83045319,225.83,225.77,6.6028]
[1734141974789,0.83044818,225.82,225.77,6.6028]
[1734141974977,23.776884,225.84,225.77,6.6028]
[1734141975178,0.83044808,225.83,225.77,6.6028]
[1734141975377,23.902374,225.82,225.71,8.0079]
[1734141975692,23.776884,225.8,225.71,8.0079]
[1734141975888,23.776884,225.78,225.71,8.0079]
[1734141976183,10.0,225.87,225.71,8.0079]
[1734141976184,0.83061624,225.77,225.71,8.0079]
[1734141976483,23.776884,225.8,225.71,8.0079]
[1734141976686,0.83052662,225.79,225.71,8.0079]
[1734141977073,23.776884,225.84,225.71,15.47717932]
[1734141977387,23.776884,225.82,225.72,0.28272561]
[1734141977593,0.83047649,225.81,225.71,8.0079]
[1734141979166,23.776884,225.8,225.71,8.0079]
[1734141979371,0.83057343,225.79,225.71,8.0079]
[1734141982772,23.776884,225.78,225.71,8.0079]
[1734141982999,6.89615435,225.86,225.62,35.01232669]
[1734141983000,23.776884,225.76,225.66,8.0079]
[1734141983197,23.776884,225.74,225.66,8.0079]
[1734141983394,23.776884,225.72,225.66,8.0079]
[1734141983590,23.776884,225.74,225.66,8.0079]
[1734141983591,0.83080414,225.71,225.66,8.0079]
[1734141984487,0.83079783,225.73,225.66,8.0079]
[1734141984688,23.776884,225.72,225.66,8.0079]
[1734141984993,0.83081822,225.71,225.66,8.0079]
[1734141985774,23.776884,225.7,225.66,1.5685]
[1734141986078,23.776884,225.68,225.61,6.4394]
[1734141986277,23.776884,225.66,225.61,6.4394]
[1734141986475,23.776884,225.64,225.61,6.4394]
[1734141986680,0.83106312,225.63,225.61,6.4394]
[1734141987095,0.83106312,225.63,225.6,1.5685]
[1734141987609,0.8311129,225.63,225.6,1.5685]
[1734141988317,23.776884,225.62,225.56,8.0079]
[1734141989230,23.902374,225.68,225.56,8.0079]
[1734141989395,23.902374,225.66,225.56,8.0079]
[1734141989698,23.902374,225.64,225.56,8.0079]
[1734141989873,23.776884,225.62,225.56,8.0079]
[1734141990076,23.776884,225.6,225.56,8.0079]
[1734141990274,23.776884,225.58,225.56,1.5685]
[1734141992580,23.776884,225.63,225.56,1.5685]
[1734141992818,0.83121895,225.62,225.56,1.5685]
[1734141993029,0.83116448,225.65,225.56,1.5685]
[1734141994693,23.776884,225.64,225.56,1.5685]
[1734141995589,23.776884,225.67,225.56,1.5685]
[1734141995903,23.776884,225.65,225.56,1.5685]
[1734141996294,20.0,225.69,225.56,1.5685]
[1734141996490,20.0,225.69,225.56,9.03777932]
[1734141996491,0.83097339,225.68,225.56,9.03777932]
[1734141996703,0.83097339,225.68,225.56,1.5685]
[1734141997791,0.83097202,225.68,225.57,13.8686435]
[1734141997987,23.776884,225.68,225.58,7.46927932]
[1734141998288,23.776884,225.68,225.57,13.8686435]
[1734141998489,0.83093977,225.67,225.57,13.8686435]
[1734141998710,0.83093977,225.67,225.57,6.39936418]
[1734142000508,23.776884,225.68,225.57,6.39936418]
[1734142000684,0.83095463,225.67,225.57,6.39936418]
[1734142001607,0.83095463,225.67,225.57,6.1156]
[1734142003401,23.776884,225.68,225.58,0.28380112]
[1734142003600,23.776884,225.71,225.58,7.75308044]
[1734142003800,23.776884,225.69,225.58,7.75308044]
[1734142004106,23.776884,225.69,225.59,7.46927932]
[1734142004502,23.776884,225.69,225.58,0.28380112]
[1734142006918,23.776884,225.69,225.58,7.75308044]
[1734142007693,0.83089531,225.68,225.58,0.28380112]
[1734142007913,23.776884,225.67,225.57,11.14107114]
[1734142008100,0.83097917,225.66,225.57,11.14107114]
[1734142008309,23.776884,225.67,225.57,11.14107114]
[1734142008596,0.83099057,225.66,225.57,11.14107114]
[1734142008796,23.776884,225.67,225.57,11.14107114]
[1734142009206,0.83097806,225.66,225.57,11.14107114]
[1734142013729,23.776884,225.67,225.57,11.14107114]
[1734142014703,23.776884,225.67,225.57,18.61035046]
[1734142015027,23.776884,225.67,225.57,11.14107114]
[1734142016306,0.83097008,225.66,225.57,11.14107114]
[1734142016810,23.776884,225.67,225.58,0.28378151]
[1734142017323,0.83098068,225.72,225.6,7.46927932]
[1734142017530,0.83081367,225.75,225.61,1.90774748]
[1734142018021,0.12549,225.74,225.61,21.90774748]
[1734142018328,0.8308514,225.73,225.61,21.90774748]
[1734142018520,24.027864,225.72,225.61,21.90774748]
[1734142018831,23.776884,225.7,225.61,21.6243]
[1734142019008,23.776884,225.68,225.61,21.6243]
[1734142019506,23.776884,225.72,225.61,21.90790328]
[1734142019700,23.776884,225.7,225.61,21.90790328]
[1734142020508,0.83085119,225.69,225.61,21.6243]
[1734142020914,23.776884,225.68,225.61,21.6243]
[1734142021121,0.83095954,225.67,225.61,21.6243]
[1734142021324,0.83095954,225.67,225.61,1.6243]
[1734142022518,23.776884,225.68,225.61,1.6243]
[1734142023611,0.83093666,225.67,225.61,1.6243]
[1734142028420,23.776884,225.68,225.61,1.6243]
[1734142029424,0.83093468,225.67,225.61,1.6243]
[1734142030123,23.776884,225.68,225.61,1.6243]
[1734142030337,0.83094021,225.67,225.61,1.6243]
[1734142030723,23.776884,225.66,225.61,1.6243]
[1734142030936,0.83103536,225.65,225.61,1.6243]
[1734142031125,23.776884,225.66,225.61,1.6243]
[1734142031326,0.83103765,225.65,225.61,1.6243]
[1734142031527,23.776884,225.66,225.61,1.6243]
[1734142033514,23.776884,225.64,225.61,1.6243]
[1734142034836,0.83107547,225.7,225.61,1.6243]
[1734142035023,23.902374,225.69,225.61,1.6243]
[1734142035226,23.776884,225.67,225.61,1.6243]
[1734142035739,0.83097566,225.66,225.61,1.6243]
[1734142038521,23.776884,225.67,225.61,1.6243]
[1734142038726,6.6457,225.71,225.61,1.6243]
[1734142038727,0.83097343,225.66,225.61,1.6243]
[1734142038946,23.776884,225.67,225.61,1.6243]
[1734142039947,23.87288347,225.77,225.61,1.6243]
[1734142039948,23.776884,225.69,225.61,1.6243]
[1734142040328,23.776884,225.67,225.61,1.6243]
[1734142040529,0.83100188,225.66,225.61,1.6243]
[1734142041443,0.83100188,225.66,225.61,3.0343]
[1734142041836,0.83100188,225.66,225.61,1.6243]
[1734142043852,23.776884,225.67,225.61,1.6243]
[1734142044433,0.8309432,225.66,225.61,1.6243]
[1734142044636,23.776884,225.65,225.61,1.6243]
[1734142044891,23.776884,225.63,225.61,1.6243]
[1734142045026,0.83115174,225.62,225.57,6.1156]
[1734142045355,23.776884,225.63,225.57,6.1156]
[1734142045551,0.83115308,225.62,225.57,6.1156]
[1734142045937,0.83114247,225.7,225.57,6.1156]
[1734142046236,0.25098,225.68,225.57,6.1156]
[1734142046435,23.776884,225.67,225.57,6.1156]
[1734142046636,23.776884,225.65,225.57,6.1156]
[1734142046850,0.83106998,225.64,225.57,6.1156]
[1734142048534,23.776884,225.63,225.57,6.1156]
[1734142048851,0.83114107,225.62,225.57,6.1156]
[1734142049154,23.776884,225.63,225.57,4.81559]
[1734142049340,0.83114023,225.62,225.57,4.81559]
[1734142049541,23.776884,225.63,225.57,4.81559]
[1734142051330,0.83112188,225.62,225.57,4.81559]
[1734142053347,0.83112188,225.62,225.56,1.5285]
[1734142053348,23.776884,225.61,225.56,1.5285]
[1734142053640,23.776884,225.59,225.56,1.5285]
[1734142053852,0.83130513,225.58,225.56,1.5285]
[1734142058141,0.83130538,225.65,225.56,1.5285]
[1734142058999,0.83108233,225.69,225.56,1.5285]
[1734142060152,23.776884,225.68,225.57,1.41]
[1734142060352,23.776884,225.66,225.57,1.41]
[1734142060581,23.776884,225.66,225.58,6.4463]
[1734142061578,0.830995,225.7,225.58,6.4463]
[1734142061776,0.830995,225.7,225.58,7.8563]
[1734142061972,23.776884,225.69,225.58,7.8563]
[1734142062179,0.83098568,225.68,225.58,7.8563]
[1734142062945,0.83098568,225.68,225.58,6.4463]
[1734142063272,0.83094767,225.7,225.58,13.91557932]
[1734142063484,0.83088706,225.74,225.61,1.5367]
[1734142064572,23.776884,225.73,225.61,1.5367]
[1734142064870,23.776884,225.71,225.61,1.5367]
[1734142065076,0.83084017,225.7,225.61,1.82020049]
[1734142065276,23.776884,225.71,225.61,1.82020049]
[1734142065583,0.83082905,225.7,225.61,1.82020049]
[1734142065962,0.83082905,225.7,225.61,3.23020049]
[1734142066158,23.776884,225.69,225.61,2.9467]
[1734142066362,0.83094868,225.68,225.61,2.9467]
[1734142066681,23.776884,225.69,225.61,2.9467]
[1734142066870,0.83094506,225.68,225.61,2.9467]
[1734142068368,23.776884,225.67,225.61,2.9467]
[1734142068590,23.776884,225.65,225.61,1.5367]
[1734142068885,23.776884,225.63,225.57,1.6351]
[1734142069165,23.776884,225.61,225.57,1.6351]
[1734142069375,23.776884,225.59,225.57,1.6351]
[1734142070565,0.8312521,225.66,225.57,1.6351]
[1734142070766,23.776884,225.65,225.57,1.6351]
[1734142070985,23.776884,225.63,225.57,1.6351]
[1734142073053,6.6468,225.67,225.57,1.6351]
[1734142073054,23.776884,225.65,225.57,1.6351]
[1734142073250,23.776884,225.63,225.57,1.6351]
[1734142073760,0.83112217,225.62,225.57,1.6351]
[1734142074079,23.776884,225.65,225.57,1.6351]
[1734142074277,23.776884,225.63,225.57,1.6351]
[1734142075457,23.776884,225.65,225.57,1.6351]
[1734142075657,23.776884,225.63,225.57,1.6351]
[1734142075872,23.902374,225.69,225.57,1.6351]
[1734142076151,23.776884,225.67,225.57,9.10437932]
[1734142076380,23.776884,225.65,225.57,9.10437932]
[1734142077187,23.776884,225.65,225.58,1.41]
[1734142080069,23.776884,225.65,225.57,1.6351]
[1734142083287,23.776884,225.65,225.58,1.41]
[1734142084020,0.83103558,225.64,225.58,1.41]
[1734142084695,0.83103558,225.64,225.57,1.6351]
[1734142085069,23.776884,225.65,225.57,1.6351]
[1734142086991,23.776884,225.68,225.6,7.46927932]
[1734142087313,0.83088906,225.74,225.61,7.46927932]
[1734142087621,0.12549,225.73,225.61,7.46927932]
[1734142087797,0.83088566,225.72,225.61,7.46927932]
[1734142088191,0.83085914,225.74,225.67,7.46927932]
[1734142088405,0.83074477,225.78,225.68,6.5296]
[1734142088921,0.12549,225.77,225.68,6.5296]
[1734142089122,0.83077559,225.76,225.68,6.5296]
[1734142089618,23.776884,225.75,225.68,6.5296]
[1734142089820,23.776884,225.73,225.68,6.5296]
[1734142090718,43.902374,225.8,225.68,6.5296]
[1734142090934,23.776884,225.77,225.68,6.5296]
[1734142091217,23.776884,225.75,225.68,6.5296]
[1734142091421,23.776884,225.75,225.68,6.5996]
[1734142092696,0.83067676,225.74,225.68,6.5996]
[1734142093501,23.776884,225.75,225.68,6.5996]
[1734142094105,0.83068359,225.74,225.68,6.5996]
[1734142096011,23.776884,225.75,225.68,6.5996]
[1734142099805,0.83068728,225.79,225.68,14.06887932]
[1734142099999,24.60745887,225.78,225.68,14.06887932]
[1734142100425,24.60745887,225.78,225.68,6.5996]
[1734142100803,24.60745887,225.78,225.68,14.06887932]
[1734142102021,24.60745887,225.78,225.68,6.5996]
[1734142116817,24.60745887,225.78,225.68,14.06887932]
[1734142117528,24.60745887,225.78,225.68,6.5996]
[1734142120977,24.60745887,225.78,225.68,14.06887932]
[1734142121733,24.60745887,225.78,225.69,1.6309]
[1734142123833,24.60745887,225.78,225.71,20.0]
[1734142124047,0.83063788,225.83,225.74,15.11437932]
[1734142124330,0.83042679,225.87,225.75,7.46927932]
[1734142124933,0.12549,225.86,225.75,7.46927932]
[1734142125138,0.83039607,225.85,225.76,7.46927932]
[1734142125837,0.83039607,225.85,225.77,7.46927932]
[1734142126041,0.83032925,225.88,225.77,7.46927932]
[1734142126849,0.83032925,225.88,225.79,1.6301]
[1734142127430,8.29951696,225.91,225.79,1.6301]
[1734142127852,0.12549,225.9,225.79,9.09937932]
[1734142128447,24.027864,225.9,225.79,9.09937932]
[1734142128649,23.776884,225.88,225.79,9.09937932]
[1734142128860,0.83022644,225.87,225.79,9.09937932]
[1734142129164,23.776884,225.88,225.79,9.09937932]
[1734142129367,23.776884,225.88,225.8,7.46927932]
[1734142129756,0.83019955,225.87,225.8,7.46927932]
[1734142129957,23.776884,225.86,225.79,9.09937932]
[1734142131836,23.776884,225.86,225.79,1.6301]
[1734142132546,23.776884,225.86,225.79,9.09937932]
[1734142136837,23.776884,225.86,225.8,7.63927932]
[1734142137825,23.776884,225.86,225.8,0.17]
[1734142142348,23.776884,225.86,225.79,9.09937932]
[1734142145244,23.776884,225.86,225.8,1.41]
[1734142152901,23.776884,225.86,225.81,7.46927932]
[1734142153189,23.776884,225.9,225.81,7.46927932]
[1734142153393,0.83013635,225.91,225.81,7.46927932]
[1734142153566,0.83013635,225.91,225.81,7.75128802]
[1734142153985,0.90815545,225.93,225.81,7.75128802]
[1734142154185,0.90815545,225.93,225.82,7.46927932]
[1734142154697,23.776884,225.92,225.82,7.46927932]
[1734142154901,23.776884,225.9,225.82,7.46927932]
[1734142156001,23.776884,225.91,225.82,7.46927932]
[1734142156169,23.776884,225.89,225.82,7.46927932]
[1734142157385,23.776884,225.89,225.8,1.41]
[1734142157592,0.83015246,225.88,225.8,1.41]
[1734142157781,23.776884,225.87,225.8,1.41]
[1734142157979,0.83026353,225.86,225.8,1.41]
[1734142158298,23.776884,225.85,225.8,1.41]
[1734142158507,23.776884,225.83,225.79,21.6301]
[1734142159121,0.83031841,225.82,225.79,1.6301]
[1734142159309,23.776884,225.81,225.74,11.11254892]
[1734142163626,0.83044004,225.8,225.74,5.09754892]
[1734142163832,23.776884,225.79,225.68,7.5231]
[1734142164164,23.776884,225.77,225.68,7.5231]
[1734142164285,23.776884,225.75,225.68,7.5231]
[1734142164909,23.776884,225.75,225.69,7.46927932]
[1734142166037,23.776884,225.75,225.68,14.99237932]
[1734142166231,23.776884,225.75,225.68,7.5231]
[1734142168319,23.776884,225.75,225.68,1.5195]
[1734142168523,23.776884,225.75,225.68,21.5195]
[1734142169009,23.776884,225.73,225.68,21.5195]
[1734142169413,23.776884,225.73,225.65,5.09754892]
[1734142169635,23.776884,225.73,225.63,7.538]
[1734142169636,23.776884,225.71,225.66,20.07]
[1734142169818,6.6441,225.77,225.66,20.07]
[1734142169819,23.776884,225.69,225.66,0.07]
[1734142170010,1.5528,225.79,225.66,0.07]
[1734142170011,23.776884,225.67,225.66,0.07]
[1734142170616,23.776884,225.67,225.61,0.07]
[1734142172935,23.776884,225.65,225.61,0.07]
[1734142173233,0.83102161,225.64,225.61,0.07]
[1734142173433,23.776884,225.65,225.61,0.07]
[1734142174739,23.776884,225.65,225.58,1.5344]
[1734142175121,23.776884,225.63,225.58,1.5344]
[1734142181964,23.776884,225.61,225.54,12.56682824]
[1734142185847,23.776884,225.61,225.54,5.09754892]
[1734142186846,23.776884,225.59,225.53,1.5139]
[1734142187055,23.776884,225.57,225.48,12.68824892]
[1734142187236,0.83136941,225.56,225.48,12.68824892]
[1734142187552,23.776884,225.55,225.48,12.68824892]
[1734142188143,23.776884,225.55,225.51,20.0]
[1734142188748,23.776884,225.55,225.48,12.68824892]
[1734142188966,23.776884,225.55,225.48,1.5139]
[1734142189135,23.776884,225.53,225.48,1.5139]
[1734142194261,23.776884,225.53,225.46,7.46927932]
[1734142194614,23.776884,225.53,225.49,7.46927932]
[1734142194737,0.83142463,225.61,225.52,7.46927932]
[1734142194935,0.83123214,225.63,225.53,7.46927932]
[1734142195135,0.83123214,225.63,225.51,0.28419021]
[1734142195643,0.83123214,225.63,225.53,20.0]
[1734142196457,0.83123214,225.63,225.53,27.46927932]
[1734142196641,0.83123214,225.63,225.53,28.87927932]
[1734142197036,23.776884,225.62,225.53,1.41]
[1734142197237,23.776884,225.6,225.53,1.41]
[1734142197453,0.83129542,225.59,225.53,1.41]
[1734142197781,23.776884,225.58,225.53,1.41]
[1734142198960,23.776884,225.56,225.53,1.41]
[1734142199964,23.776884,225.56,225.49,7.46927932]
[1734142200148,23.776884,225.56,225.5,0.07]
[1734142200347,23.776884,225.56,225.5,20.07]
[1734142200679,23.776884,225.56,225.5,0.07]
[1734142201052,23.776884,225.56,225.51,20.0]
[1734142201253,23.776884,225.56,225.5,0.07]
[1734142201254,23.776884,225.54,225.5,0.07]
[1734142203553,23.776884,225.52,225.5,0.07]
[1734142203862,24.60842649,225.51,225.5,0.07]
[1734142204454,23.776884,225.5,225.4,0.07]
[1734142204655,23.776884,225.48,225.4,0.07]
[1734142204857,23.776884,225.46,225.4,0.07]
[1734142205647,23.776884,225.46,225.42,20.0]
[1734142206049,23.776884,225.46,225.4,0.07]
[1734142206268,23.776884,225.46,225.41,20.0]
[1734142207371,23.776884,225.46,225.4,20.07]
[1734142207671,1.6456,225.56,225.44,7.46927932]
[1734142207865,0.83150523,225.55,225.44,7.46927932]
[1734142208546,0.83150523,225.55,225.43,7.46927932]
[1734142209211,23.776884,225.54,225.43,7.46927932]
[1734142209459,23.776884,225.52,225.43,7.46927932]
[1734142209644,0.83154056,225.51,225.43,7.46927932]
[1734142209849,23.776884,225.52,225.43,7.46927932]
[1734142210170,23.776884,225.5,225.43,7.46927932]
[1734142211786,0.8315396,225.49,225.4,5.09754892]
[1734142211946,23.776884,225.48,225.39,1.6132]
[1734142212242,23.776884,225.53,225.4,7.46927932]
[1734142212445,23.776884,225.51,225.4,7.46927932]
[1734142212670,1.6456,225.56,225.4,7.75430071]
[1734142212671,23.776884,225.49,225.4,7.75430071]
[1734142213355,23.776884,225.47,225.4,20.0]
[1734142213547,23.776884,225.47,225.39,1.6132]
[1734142213548,23.776884,225.47,225.41,20.0]
[1734142213868,0.83169265,225.46,225.41,20.0]
[1734142214074,23.776884,225.45,225.4,20.0]